Cogmind - Beta 16 @@@ ROGUE MODE // 2025.12.07 @ 20:52:20 Player: AngelSpirit Result: Destroyed by S-27 Virus with Autogun Performance ------------- Evolutions (0) 0 Regions Visited (3) 600 Robots Destroyed (47) 235 Value Destroyed (1165) 1165 Prototype IDs (12) 240 Alien Tech Used (0) 0 Bonus (0) 0 TOTAL SCORE: 2240 Bonus ------- None Cogmind --------- Core Integrity 0/250 Matter 293/300 Energy 123/125 System Corruption 0% Temperature Cool (65) Movement Rolling (115) Ox1 Location -7/Recycling Parts ------- > --- POWER (1) -------- Light Ion Engine > --- PROPULSION (2) --- Armored Huge Wheel > --- UTILITY (2) ------ High-capacity Storage Unit > --- WEAPON (2) ------- Advanced Assault Cannon > --- INVENTORY (20) --- Subdweller Power Source Arachnoskeleton Wheel Subdweller Monowheel Armored Huge Wheel High-capacity Matter Pod (200) High-capacity Matter Pod (200) Sensor Array Advanced Sensor Array Signal Interpreter Scrap Shield Subdweller Laser Gatling Laser Subdweller Beam Cannon Powered Cannon Peak State ------------ > --- POWER ------------ Improved Deuterium Engine > --- PROPULSION ------- Armored Huge Wheel > --- UTILITY ---------- High-capacity Storage Unit Makeshift Thermal Plating > --- WEAPON ----------- Subdweller Beam Cannon Advanced Assault Cannon > --- INVENTORY -------- Subdweller Power Source Arachnoskeleton Wheel Subdweller Monowheel Armored Huge Wheel High-capacity Matter Pod High-capacity Matter Pod Sensor Array Sensor Array Signal Interpreter Scrap Shield Subdweller Laser Subdweller Laser Gatling Laser Powered Cannon [Rating: 29] Favorites ----------- Power Light Ion Engine Engine Light Ion Engine Propulsion Compact Wheel Wheel Compact Wheel Utility High-capacity Storage Unit Device Sensor Array Storage High-capacity Storage Unit Protection Makeshift Thermal Plating Weapon Subdweller Beam Cannon Energy Gun EM Pulse Gun Energy Cannon Subdweller Beam Cannon Ballistic Gun Heavy Battle Rifle Ballistic Cannon Advanced Assault Cannon Launcher Grenade Launcher Build | -11 -10 -10 -7 ------- Run | Yrd Mat Sub Rec Slots Evolved . | . . . . Power . | . . . . Propulsion . | . . . . Utility . | . . . . Weapon . | . . . . Parts Attached 37 | 6 6 21 4 Power 7 | 1 . 4 2 Engine 7 | 1 . 4 2 Core . | . . . . Reactor . | . . . . Propulsion 13 | 2 3 7 1 Treads . | . . . . Leg . | . . . . Wheel 13 | 2 3 7 1 Hover . | . . . . Flight . | . . . . Utility 6 | 1 2 3 . Device 2 | . . 2 . Storage 2 | 1 1 . . Processor . | . . . . Hackware . | . . . . Protection 2 | . 1 1 . Artifact . | . . . . Weapon 11 | 2 1 7 1 Energy Gun 4 | 2 . 2 . Energy Cannon 3 | . . 3 . Ballistic Gun 1 | . . 1 . Ballistic Cannon 2 | . . 1 1 Launcher 1 | . 1 . . Special Weapon . | . . . . Impact Weapon . | . . . . Slashing Weapon . | . . . . Piercing Weapon . | . . . . Special Melee Weapon . | . . . . Unidentified Prototypes . | . . . . Parts Lost 11 | . 3 5 3 Power 3 | . . 2 1 Propulsion 5 | . 3 2 . Utility 1 | . . . 1 Weapon 2 | . . 1 1 Highest Loss Streak 2 | . 1 2 2 To Critical Strikes . | . . . . Average Backups 14 | . 9 17 15 Power 1 | . . 1 1 Propulsion 5 | . 2 7 4 Utility 5 | . 5 5 6 Weapon 2 | . 1 2 3 Tool/Special . | . . . . Unused Backups 15 | . . 2 13 Power 1 | . . . 1 Propulsion 6 | . . 1 5 Utility 5 | . . . 5 Weapon 3 | . . 1 2 Tool/Special . | . . . . Average Slot Usage (%) 97 | . 98 99 86 Engine 13 | . 14 13 14 Wheel 25 | . 27 27 17 Device 7 | . . 11 . Storage 14 | . 14 14 14 Protection 6 | . 13 2 12 Energy Gun 6 | . 24 2 . Energy Cannon 9 | . . 11 13 Ballistic Gun 6 | . . 11 . Ballistic Cannon 2 | . . . 13 Launcher 2 | . 3 2 . Peak Build Rating 29 | 6 8 21 29 Average Rating 15 | 3 7 15 26 On Entrance 8 | . 6 8 20 Avg Prop Armor Cover (%) . | . . . . Naked Turns . | . . . . Heaviest Build 68 | 14 53 61 68 Greatest Support 36 | 26 26 36 30 Greatest Overweight (x) 2 | . 2 2 2 Average Overweight (x) 1 | . . 1 1 Largest Inventory Capacity 20 | 8 20 20 20 Average Capacity 18 | 7 14 20 20 Most Carried 20 | . 17 20 20 Average Carried 17 | . 9 19 19 Final Capacity 20 | 8 20 20 20 Final Carried 20 | . 17 19 20 Class Distribution -------------------- 87% | Mutant 12% | Scavenger-Mutant Dominant Class ---------------- Mutant | -10/Materials Mutant | -10/Subcaves Mutant | -7/Recycling Resources | -11 -10 -10 -7 ----------- Run | Yrd Mat Sub Rec Matter Collected 1436 | 260 460 554 162 Remotely . | . . . . Salvage Created 1579 | . 806 469 304 Parts 114 | . 56 42 16 Haulers Intercepted 2 | . 2 . . Recyclers Shooed 1 | . . . 1 Parts Field Recycled . | . . . . Retrieved Matter . | . . . . Parts Self-Destructed 15 | . . 15 . Prevented . | . . . . Parts Restored . | . . . . Kills | -11 -10 -10 -7 ------- Run | Yrd Mat Sub Rec Combat Hostiles Destroyed 30 | . 13 13 4 Guns 10 | . 5 4 1 Cannons 10 | . . 7 3 AOE 10 | . 8 2 . Classes Destroyed 10 | . 8 1 1 Worker 6 | . 6 . . Builder 2 | . 2 . . Hauler 2 | . 2 . . Recycler 2 | . 1 . 1 Operator 2 | . 2 . . Watcher 3 | . 3 . . Swarmer 6 | . 6 . . Grunt 8 | . 7 . 1 Sentry 3 | . . . 3 Subdweller 13 | . . 13 . Best Kill Streak 6 | . 6 2 2 Combat Bots Only 3 | . 3 2 2 Max Kills in Single Turn 4 | . 4 1 1 Gunslinging . | . . . . Exploded 2 | . 2 1 . Melee . | . . . . Uniques/NPCs Destroyed . | . . . . Combat | -11 -10 -10 -7 -------- Run | Yrd Mat Sub Rec Hostile Shots Fired 155 | . 38 41 76 Missed 45 | . 8 13 24 Hits 110 | . 30 28 52 Projectile 110 | . 30 28 52 Critical Strikes 1 | . . . 1 Damage Taken 1445 | . 368 624 453 Core 261 | . 83 87 91 Absorbed by Shields . | . . . . Ignored by Resistances 33 | . . 13 20 Core Remaining (%) 100 | 100 . . . Volleys Fired 151 | . 60 77 14 Largest 2 | . 2 2 2 Hottest 120 | . 80 113 120 Shots Fired 254 | . 118 111 25 Gun 149 | . 110 35 4 Cannon 86 | . . 65 21 Launcher 19 | . 8 11 . Special . | . . . . Kinetic 40 | . . 26 14 Thermal 80 | . . 69 11 Explosive 19 | . 8 11 . Electromagnetic 115 | . 110 5 . Robot Hit Streak 18 | . 6 14 18 Robot Miss Streak 5 | . 5 2 2 Penetration Max . | . . . . Secondary Targets . | . . . . Shots Hit Robots 124 | . 60 50 14 Core Hits 69 | . 41 19 9 Critical Kills . | . . . . Critical Parts Destroyed . | . . . . Critical Strikes 2 | . 1 . 1 Blast 1 | . . . 1 Corrupt 1 | . 1 . . Melee Attacks . | . . . . Impact . | . . . . Slashing . | . . . . Piercing . | . . . . Sneak Attacks . | . . . . Combat Hostiles . | . . . . Follow-up Attacks . | . . . . Damage Inflicted 3262 | . 1362 1448 452 Guns 1227 | . 833 355 39 Cannons 1067 | . . 654 413 Explosions 968 | . 529 439 . Melee . | . . . . Ramming . | . . . . Kinetic 612 | . . 341 271 Thermal 889 | . 83 625 181 Explosive 885 | . 446 439 . Electromagnetic 876 | . 833 43 . Impact . | . . . . Slashing . | . . . . Piercing . | . . . . Highest Corruption . | . . . . Average Corruption . | . . . . Corruption Purged . | . . . . Corruption Blocked . | . . . . Overload Shots . | . . . . Overflow Damage 10 | . 5 . 5 Projectiles 5 | . . . 5 Explosions 5 | . 5 . . Melee . | . . . . Knockbacks 2 | . . . 2 Impact . | . . . . Kinetic 2 | . . . 2 Secondary . | . . . . Self-Inflicted Damage 81 | . 57 24 . Shots 5 | . 4 1 . Rammed . | . . . . Targets Rammed . | . . . . Kicked . | . . . . Crushed . | . . . . Highest Temperature 366 | . 282 20 366 Average Temperature 96 | . 81 6 179 Received Heat Transfer 369 | . 114 114 141 Effects 2 | . . . 2 Interference 1 | . . . 1 Matter Decay 1 | . . . 1 Siege Activations . | . . . . Martial Activations . | . . . . Shielding Activations . | . . . . Robots Disrupted . | . . . . Combat Hostiles . | . . . . Robots Corrupted . | . . . . Combat Hostiles . | . . . . Parts Fried 4 | . 4 . . Impact Corruptions . | . . . . Robots Melted . | . . . . Combat Hostiles . | . . . . Parts Melted 2 | . . 2 . Heat Transferred 1224 | . 150 839 235 Parts Sabotaged . | . . . . Parts Stolen . | . . . . Parts Stripped . | . . . . Power Chain Reactions 3 | . 3 . . Alert | -11 -10 -10 -7 ------- Run | Yrd Mat Sub Rec Maximum Alert Level . | . . . . Low Security (%) 100 | 100 100 . 100 Level 1 . | . . . . Level 2 . | . . . . Level 3 . | . . . . Level 4 . | . . . . Level 5 . | . . . . High Security . | . . . . Max Security . | . . . . Peak Influence 160 | . 160 . 29 Initial 1 | . . . 1 Average 34 | . 61 . 3 Influence Increases 651 | . 500 30 121 Destroy 0b10 Robot/C 340 | . 260 . 80 Destroy 0b10 Robot/NC 90 | . 80 . 10 Destroy Leader 70 | . 70 . . Successful Hack 56 | . 30 . 26 Destroy Structure 65 | . 60 . 5 Lose Combat Pursuer 30 | . . 30 . Influence Decreases 643 | . 413 113 117 Entered New Map 46 | . . 43 3 Time Decay 523 | . 383 56 84 Lost Part 74 | . 30 14 30 Squads Dispatched 4 | . 4 . . Investigation 2 | . 2 . . Extermination . | . . . . Reinforcement 2 | . 2 . . Assault . | . . . . Garrison . | . . . . Intercept . | . . . . Searches Triggered . | . . . . Construction Impeded . | . . . . Haulers Reinforced . | . . . . Active Scanning Responses . | . . . . Cargo Convoy Interrupts . | . . . . Stealth | -11 -10 -10 -7 --------- Run | Yrd Mat Sub Rec Distress Signals . | . . . . Communications Jammed . | . . . . Distress Signals . | . . . . Times Spotted 40 | . 19 16 5 Peak Tracking Total 4 | . 4 3 2 Tactical Retreats 1 | . . 1 . Traps | -11 -10 -10 -7 ------- Run | Yrd Mat Sub Rec Traps Triggered 3 | . 2 1 . Indirectly . | . . . . Trap Hack Attempts . | . . . . Triggered . | . . . . Disarmed . | . . . . Reprogrammed . | . . . . Reused 1 | . . 1 . Traps Extracted . | . . . . Installed 1 | . . 1 . Triggered . | . . . . Most Traps Carried 1 | . . 1 . Machines | -11 -10 -10 -7 ---------- Run | Yrd Mat Sub Rec Machines Disabled 1 | . . 1 . Max in Single Turn 1 | . . 1 . Machines Repaired . | . . . . Machines Dismantled . | . . . . Machines Sabotaged . | . . . . Overloaded Fab Kills . | . . . . Hacking | -11 -10 -10 -7 --------- Run | Yrd Mat Sub Rec Machines Accessed 14 | . 5 3 6 Terminals 6 | . 4 . 2 Fabricators . | . . . . Repair Stations . | . . . . Recycling Units 5 | . 1 . 4 Scanalyzers . | . . . . Garrison Access . | . . . . Total Hacks 35 | . 15 7 13 Successful 22 | . 8 7 7 Failed 13 | . 7 . 6 Catastrophic 3 | . 1 . 2 Database Lockouts . | . . . . Manual 11 | . 9 . 2 Terminals 16 | . 12 . 4 Fabricators . | . . . . Repair Stations . | . . . . Recycling Units 12 | . 3 . 9 Scanalyzers . | . . . . Garrison Access . | . . . . Terminal Hacks 14 | . 6 7 1 Record 5 | . . 5 . Robot Analysis 2 | . 2 . . Open Door 1 | . . 1 . Locate Traps 1 | . 1 . . Recall Investigation 1 | . 1 . . Registered Components 1 | . 1 . . Zone Layout 2 | . 1 . 1 Proto ID Catalog 1 | . . 1 . Fabricator Hacks . | . . . . Repair Station Hacks . | . . . . Recycling Unit Hacks 5 | . . . 5 Report Inventory 1 | . . . 1 Retrieve Components 4 | . . . 4 Scanalyzer . | . . . . Garrison Access Hacks . | . . . . Unauthorized Hacks 3 | . 2 . 1 Terminals 3 | . 2 . 1 Botnet 2 | . 1 . 1 Operators 1 | . 1 . . Fabricators . | . . . . Repair Stations . | . . . . Recycling Units . | . . . . Scanalyzers . | . . . . Garrison Access . | . . . . Data Cores Recovered . | . . . . Used . | . . . . Hacking Detections 8 | . 4 . 4 Full Trace Events 1 | . 1 . . Feedback Events . | . . . . Feedback Blocked . | . . . . Robot Schematics Acquired . | . . . . Robots Built . | . . . . Authchips . | . . . . Time . | . . . . Total Robot Build Rating . | . . . . Part Schematics Acquired . | . . . . Parts Built . | . . . . Authchips . | . . . . Time . | . . . . Total Part Build Rating . | . . . . Part Studies Acquired . | . . . . Parts Repaired . | . . . . Time . | . . . . Parts Recycled . | . . . . Recycled Matter . | . . . . Retrieved Matter . | . . . . Retrieved Components 11 | . . . 11 Parts Scanalyzed . | . . . . Part Schematics Acquired . | . . . . Parts Damaged . | . . . . Bothacking | -11 -10 -10 -7 ------------ Run | Yrd Mat Sub Rec Used RIF Installer . | . . . . Robots Hacked . | . . . . Non-combat . | . . . . Combat . | . . . . Robot Hacks Applied . | . . . . Relay Couplers Released . | . . . . Fabnet Peak Effective % . | . . . . Robots Rewired . | . . . . Allies Hacked . | . . . . Hacks Repelled . | . . . . Allies | -11 -10 -10 -7 -------- Run | Yrd Mat Sub Rec Total Allies . | . . . . Largest Group . | . . . . Highest-Rated Group . | . . . . Highest-Rated Ally . | . . . . Total Orders . | . . . . Ally Attacks . | . . . . Total Damage . | . . . . Kills . | . . . . Allies Corrupted . | . . . . Allies Melted . | . . . . Intel | -11 -10 -10 -7 ------- Run | Yrd Mat Sub Rec Active Infowar (turns) 2185 | . . 2185 . Sensors 2185 | . . 2185 . Robot Analysis Total 2 | . 2 . . Derelict Logs Recovered 2 | . . 2 . Drone Launches . | . . . . Drone Recoveries . | . . . . Exploration | -11 -10 -10 -7 ------------- Run | Yrd Mat Sub Rec Turns Passed 4346 | 45 918 2656 727 Spaces Moved 3158 | 40 684 1976 458 Core 2 | 2 . . . Treads . | . . . . Legs . | . . . . Wheels 3156 | 38 684 1976 458 Hover . | . . . . Flight . | . . . . Fastest Speed 50 | 50 90 105 107 Average Speed 114 | 89 98 116 126 Slowest Speed 130 | 100 120 120 130 Overloaded Moves . | . . . . Propulsion Burnouts . | . . . . Robots Hopped . | . . . . Potential Cave-ins . | . . . . Cave-ins Triggered . | . . . . Exploration Rate (%) 65 | 3 87 92 79 Regions Visited 3 Branch Regions 2 Pre-discovered Areas 2 | . . 2 . Known Exits Taken . | . . . . Unknown Exits Taken 3 | 1 1 1 . Scrap Searched 13 | . . 13 . Spaces Dug 18 | . . 18 . Terrain Destroyed 155 | . 68 82 5 Melee . | . . . . Projectile 27 | . . 22 5 AOE 128 | . 68 60 . Terrain Rammed . | . . . . Walls Destroyed . | . . . . Machines Disabled . | . . . . Actions | -11 -10 -10 -7 --------- Run | Yrd Mat Sub Rec Total 3639 | 45 804 2210 580 Wait 195 | . 31 84 80 Move 3155 | 39 683 1975 458 Hop . | . . . . Pick Up 43 | . 18 22 3 Fast Attach 17 | 6 3 4 4 Attach 11 | . 1 10 . Detach . | . . . . Swap 21 | . 7 13 1 Drop 32 | . 1 24 7 Fire 151 | . 60 77 14 Melee . | . . . . Ram . | . . . . Kick . | . . . . Crush . | . . . . Escape Stasis . | . . . . Rewire 13 | . . . 13 Trap 1 | . . 1 . Miscellaneous . | . . . . Route ------- -11/Scrapyard -10/Materials (discovered 6 exits: [*Mat x3] / [*Min x2] / *Sub) -10/Subcaves (discovered 3 exits: [*Mat x2] / *Rec) -7/Recycling History --------- Turn | Location | Event 10 | -11/Scrapyard | Discovered new exit (range 16) 46 | -11/Scrapyard | Entered Materials 126 | -10/Materials | Discovered new exit (range 10) 312 | -10/Materials | Discovered new exit (range 8) 325 | -10/Materials | Build established: Mutant 451 | -10/Materials | Discovered new exit (range 8) 630 | -10/Materials | Discovered new exit (range 16) 766 | -10/Materials | Discovered new exit (range 17) 956 | -10/Materials | Discovered new exit (range 9) 964 | -10/Materials | Entered Subcaves 1025 | -10/Subcaves | Visited 4L-MR0's lab 1032 | -10/Subcaves | Learned location of Zion (-7) 1146 | -10/Subcaves | Found Arachnoskeleton 1514 | -10/Subcaves | Disturbed a concealed Subdweller 1717 | -10/Subcaves | A swath of the cavern ceiling suddenly collapsed 1829 | -10/Subcaves | A swath of the cavern ceiling suddenly collapsed 1907 | -10/Subcaves | Core integrity fell below 50% 2479 | -10/Subcaves | Met a Zionite searching for "candidates" 2673 | -10/Subcaves | Discovered new exit (range 14) 3160 | -10/Subcaves | Visited Clippyterm 3164 | -10/Subcaves | Learned Factory fabricator intel 3164 | -10/Subcaves | Learned Factory garrison access intel 3209 | -10/Subcaves | Discovered new exit (range 8) 3212 | -10/Subcaves | Learned location of 1 exit from Materials 3385 | -10/Subcaves | Build established: Scavenger-Mutant 3484 | -10/Subcaves | A Subdweller sparked back to life 3588 | -10/Subcaves | Found Powered Cannon 3613 | -10/Subcaves | Discovered new exit (range 8) 3620 | -10/Subcaves | Entered Recycling 3910 | -7/Recycling | Build established: Mutant 4038 | -7/Recycling | Scanned before Scraplab entrance 4287 | -7/Recycling | Core integrity fell below 20% 4347 | -7/Recycling | Destroyed by S-27 Virus with Autogun Last Messages --------------- 04304_ Y-54 Guardian destroyed. 04305_ R-06 Scavenger collects Imp. Heat Sink. 04306_ Overheating: Matter decay (-50). 04307_ Acquired 52 matter. 04308_ R-06 Scavenger collects Lgt. Treads. 04309_ Acquired Lgt. Ion Engine. 04312_ R-06 Scavenger collects Sub. Monowheel. 04316_ R-06 Scavenger collects Tractor Beam. 04319_ Acquired 39 matter. 04320_ Acquired 11 matter. 04322_ Acquired 18 matter. 04329_ Attempting to rewire L-41 Fighter. 04339_ P-60 Hacker springs to life. 04340_ S-27 Virus springs to life. 04340_ Attempting to rewire L-41 Fighter. 04342_ Destroyed Wheel. 04343_ R-06 Scavenger destroyed. 04345_ T-07 Excavator destroyed. 04346_ Sub. Laser destroyed. Map ----- +----------------------------------------------------+ | # """ """ """ #####+#####+##### | | # """ ""????????# #??### ####### | | #?""" "?????????# #????# #?????# | | #? ?????????# """ """ #????#+####### | | #?? ?????????# """ """ #????# # | | %#??#####????????# """ """ #????# " # ##+## | | ##??????????????###########?????#""" # #?? | | %#??????????????????????????????#"" # #?? " | | ##??????????????????????????????#""" # #? " | | ###?????????????????????????????# "" # +? " | | # ?????????????????????????????#""" # # | | # "?????????????????????????????#""" # # " | | # """"""??? #???????????????????#""" + / " | | # """"""" #?????????##+#####??# " # # " | | # """"""" #?????????#g!* =#??# # # | | # """"""" #?????????# Ys #??##+###### #?### | | # #?????????# #???# #????# #???? | | # #?????????#a #???# #???## ##??? | | # #?????????# Y #???# #???# #### | | + #?????????#u! ri!#???# ##### | | # #?????????# d #???# | | # "T" #?????????# =par%#???# ##### | | # """ #?????????#!=%] #???# #???# #### | | #############?????????+%li ! #???# #???###+###??? | | #???##??##????????????#%srg #???# #????????????? | | ##### ## #?????????#??#a@ r#???# #????????????? | | # #?????????# ?# !#???# #????????????? | | # #?????????# ####+####???# #????????????? | | # #?????????# %"#?????# #????????????? | | # #????????## #?????# #????????????? | | # #????????#" %######?# #????????????? | | # #????????# #" ### #????????????? | | + #????????+ % ! #????????????? | | # #????????# %##"%## #####????????????? | | # #????????# ?######/#####?????????????? | | ########+#????????# ?#?# #?????????????? | | #??????# #????????# #?# """ #?????????????? | | #??????# #????????# ? ### """ "Y" #?????????????? | | ######## #????????# ## """ !]! #?????????????? | | #????????#? #?# """ #?????????????? | | #????????? #?# #?????????????? | | ########## #?# #?????????????? | | #?# #?????????????? | | # ]]####################?###########?????????????? | | # ]]#????????????????????????????????????????????? | | #####????????????????????????????????????????????? | | ?????????????????????????????????????????????????? | | | | | | | +----------------------------------------------------+ Best States ------------- Heat Dissipation 25 Energy Generation 16 Energy Capacity 290 Matter Stores 300 Matter Capacity 300 Sight Range 16 Robot Scan Range 14 Terrain Scan Density 10 Armor Coverage 150 Resistance: TH 10 Evasion (%) 42 Item Schematics ----------------- None Robot Schematics ------------------ None Fabricated ------------ Nothing Repaired ---------- Nothing Studied --------- None Alien Tech Used ----------------- None Achievements -------------- None Challenges ------------ None Game ------ Seed TrapWaveHumpback Manual? 0 Play Time 00:30:21 Cumulative 161.6 hours Start 2025.12.07 @ 20:19:34 End 2025.12.07 @ 20:52:20 Sessions 1 Manual Loads 0 Difficulty Rogue Special Mode None Game No. 91 Rogue 91 Adventurer 0 Explorer 0 Win Type - Total 1 Types 1/0/0/0/0/0/0/0/0/0 Lore% 69 Gallery% 62 Achievement% 51 Wizard Run 0 Options --------- Layout 1 ASCII 0 Keyboard 0 Movement Mouse Keybinds 0 Fullscreen 2 Font 32/SmallcapsGlow Map View 50x35 Zoom Use 0% Tactical HUD 1 Map Filters NONE Filters NONE Steam 1 RUN: 4b856a86-888f-4bfc-af3e-da151ce92e07